fUST/lending_fUST_20240417
["ID","MTS","AMOUNT","RATE_DAILY","PERIOD"]
[322801363,1713330641863,-151.0,0.00033291,2]
[322801364,1713330641873,-203.031825,0.00033291,2]
[322801365,1713330641882,-203.031825,0.00033291,2]
[322801366,1713330641893,-676.268158,0.00033291,2]
[322801367,1713330641902,-676.268158,0.00033291,2]
[322801368,1713330641912,-1000.733791,0.00033291,2]
[322801369,1713330641921,-1000.733791,0.00033291,2]
[322801370,1713330641931,-151.0,0.00033291,2]
[322801371,1713330641942,-288.853906,0.00033291,2]
[322801372,1713330641951,-7519.535238,0.00033291,2]
[322801373,1713330641960,-7519.535238,0.00033291,2]
[322801374,1713330641970,-151.0,0.00033291,2]
[322801375,1713330641980,-607.449852,0.00033291,2]
[322801376,1713330641990,-607.449852,0.00033291,2]
[322801377,1713330641999,-395.718899,0.00033291,2]
[322801378,1713330642009,-395.718899,0.00033291,2]
[322801379,1713330642018,-151.0,0.00033291,2]
[322801380,1713330642028,-151.0,0.00033291,2]
[322801381,1713330642038,-151.0,0.00033291,2]
[322801382,1713330642047,-151.0,0.00033291,2]
[322801383,1713330642057,-151.0,0.00033298,2]
[322801384,1713330642066,-151.0,0.00033298,2]
[322801385,1713330642076,-63584.15694835,0.000333,2]
[322801386,1713330642086,-151.0,0.000333,2]
[322801387,1713330642095,-151.0,0.000333,2]
[322801388,1713330642105,-492.0,0.000333,2]
[322801389,1713330642114,-151.0,0.000333,2]
[322801390,1713330642124,-151.0,0.000333,2]
[322801391,1713330642133,-177.0,0.000333,7]
[322801392,1713330642143,-151.0,0.000333,2]
[322801393,1713330642152,-151.67482,0.000333,2]
[322801394,1713330642162,-164.507766,0.000333,2]
[322801395,1713330642171,-164.507766,0.000333,2]
[322801396,1713330642181,-151.0,0.000333,2]
[322801397,1713330642190,-203.031825,0.000333,2]
[322801398,1713330642199,-203.031825,0.000333,2]
[322801399,1713330642208,-676.268158,0.000333,2]
[322801400,1713330642218,-676.268158,0.000333,2]
[322801401,1713330642227,-1000.733791,0.000333,2]
[322801402,1713330642237,-1000.733791,0.000333,2]
[322801403,1713330642246,-151.0,0.000333,2]
[322801404,1713330642255,-7519.535238,0.000333,2]
[322801405,1713330642265,-7519.535238,0.000333,2]
[322801406,1713330642274,-501.7492,0.000333,2]
[322801407,1713330642284,-151.0,0.000333,2]
[322801408,1713330642293,-607.449852,0.000333,2]
[322801409,1713330642302,-607.449852,0.000333,2]
[322801410,1713330642312,-395.718899,0.000333,2]
[322801411,1713330642322,-395.718899,0.000333,2]
[322801412,1713330642332,-151.0,0.000333,2]
[322801413,1713330642341,-168.231395,0.000333,2]
[322801415,1713330642351,-286.327564,0.000333,2]
[322801417,1713330642360,-151.0,0.000333,2]
[322801419,1713330642370,-156.0,0.00033303,35]
[322801421,1713330642379,-156.0,0.00033313,35]
[322801423,1713330642389,-156.6192828,0.0003332,2]
[322801425,1713330642398,-156.0,0.00033323,35]
[322801427,1713330642407,-891.24104907,0.00033331,4]
[322801429,1713330642417,-186.93924961,0.00033332,10]
[322801431,1713330642426,-151.0,0.00033333,2]
[322801433,1713330642436,-151.0,0.00033333,2]
[322801435,1713330642445,-269.208926,0.00033333,2]
[322801436,1713330642454,-151.0,0.00033333,2]
[322801438,1713330642463,-151.0,0.00033333,2]
[322801440,1713330642473,-151.0,0.00033333,2]
[322801442,1713330642482,-243.022191,0.00033333,2]
[322801444,1713330642491,-151.0,0.00033333,2]
[322801446,1713330642501,-151.0,0.00033333,2]
[322801448,1713330642510,-164.507766,0.00033333,2]
[322801450,1713330642520,-164.507766,0.00033333,2]
[322801452,1713330642529,-164.507766,0.00033333,2]
[322801454,1713330642538,-164.507766,0.00033333,2]
[322801456,1713330642548,-151.0,0.00033333,2]
[322801458,1713330642557,-151.0,0.00033333,2]
[322801459,1713330642566,-203.031825,0.00033333,2]
[322801460,1713330642575,-203.031825,0.00033333,2]
[322801461,1713330642585,-203.031825,0.00033333,2]
[322801462,1713330642594,-203.031825,0.00033333,2]
[322801463,1713330642603,-676.268158,0.00033333,2]
[322801464,1713330642612,-676.268158,0.00033333,2]
[322801465,1713330642622,-676.268158,0.00033333,2]
[322801466,1713330642631,-676.268158,0.00033333,2]
[322801467,1713330642640,-1000.733791,0.00033333,2]
[322801468,1713330642649,-1000.733791,0.00033333,2]
[322801469,1713330642659,-1000.733791,0.00033333,2]
[322801470,1713330642668,-1000.733791,0.00033333,2]
[322801472,1713330642677,-151.0,0.00033333,2]
[322801473,1713330642686,-151.0,0.00033333,2]
[322801475,1713330642695,-7519.535238,0.00033333,2]
[322801477,1713330642704,-7519.535238,0.00033333,2]
[322801479,1713330642714,-7519.535238,0.00033333,2]
[322801481,1713330642723,-7519.535238,0.00033333,2]
[322801483,1713330642732,-151.0,0.00033333,2]
[322801485,1713330642741,-151.0,0.00033333,2]
[322801487,1713330642750,-607.449852,0.00033333,2]
[322801489,1713330642759,-607.449852,0.00033333,2]
[322801490,1713330642768,-607.449852,0.00033333,2]
[322801491,1713330642778,-607.449852,0.00033333,2]
[322801492,1713330642787,-395.718899,0.00033333,2]
[322801493,1713330642796,-395.718899,0.00033333,2]
[322801494,1713330642805,-395.718899,0.00033333,2]
[322801495,1713330642815,-395.718899,0.00033333,2]
[322801496,1713330642825,-151.0,0.00033333,2]
[322801497,1713330642834,-151.0,0.00033333,2]
[322801498,1713330642844,-151.0,0.00033333,2]
[322801499,1713330642854,-151.0,0.00033333,2]
[322801500,1713330642863,-580329.36619218,0.00033333,7]
[322801501,1713330642872,-94161.94928428,0.00033333,7]
[322801536,1713330643311,-154.98071389,0.00029999,2]
[322801537,1713330643320,-8206.09498174,0.00033333,7]
[322801546,1713330646122,-241.20667916,0.00029999,2]
[322801547,1713330646132,-154.86062544,0.00029999,2]
[322801548,1713330646143,-154.8875861,0.00029999,2]
[322801549,1713330646154,-1121.00376565,0.00029999,2]
[322801550,1713330646164,-10068.08274638,0.0003329,4]
[322801551,1713330646176,-709.24712561,0.0003329,4]
[322801552,1713330977147,1600.0,0.0002,2]
[322801553,1713331291102,-1000.0,0.00021212,2]
[322801554,1713331291127,-157.5764134,0.00021213,2]
[322801555,1713331291152,-154.87609912,0.00021213,2]
[322801556,1713331291176,-325.243623,0.00021214,2]
[322801557,1713331291200,-783.87866091,0.0002221,2]
[322801558,1713331291391,-474.19997224,0.0002221,2]
[322801559,1713331291417,-2008.53667804,0.0002221,2]
[322801560,1713331291442,-282.92215931,0.00022211,2]
[322801561,1713331291468,-300.0,0.00022211,2]
[322801562,1713331291492,-300.0,0.00022211,2]
[322801563,1713331291516,-193.3820055,0.00022212,2]
[322801564,1713331291542,-563.87316233,0.00022212,2]
[322801565,1713331291569,-236.42124196,0.00022212,2]
[322801566,1713331291597,-888.43676539,0.00022212,2]
[322801567,1713331291622,-406.49971412,0.00022212,2]
[322801568,1713331291646,-688.59429255,0.00022212,2]
[322801569,1713331291671,-7858.55367278,0.00022212,2]
[322801570,1713331291698,-154.87609912,0.00022213,2]
[322801571,1713331291725,-154.87609912,0.00022213,2]
[322801572,1713331291750,-2096.98803724,0.00022213,2]
[322801573,1713331291777,-1407.26530387,0.00022213,2]
[322801574,1713331374206,933.45528815,0.00020148,2]
[322801576,1713331521440,168.6616207,0.00019919,2]
[322801621,1713331657207,24900.0,0.00020083,2]
[322801622,1713331724728,1122.08128683,0.00020977,2]
[322801623,1713331755245,162.621811,0.00020071,2]
[322801624,1713331762656,13515.721291,0.0002007,2]
[322801625,1713331789914,587.34915995,0.00020112,2]
[322801653,1713331838226,-308.13476314,0.00021053,2]
[322801654,1713331838236,-783.87866091,0.00021054,2]
[322801655,1713331838245,-539.22318272,0.00021054,2]
[322801656,1713331838255,-157.04962732,0.00021055,2]
[322801657,1713331838265,-207.65285215,0.00021055,2]
[322801658,1713331838274,-937.89373734,0.00021055,2]
[322801659,1713331838283,-154.87609912,0.00021055,2]
[322801660,1713331838293,-2942.63433838,0.00021055,2]
[322801661,1713331838302,-246.93293796,0.00021056,2]
[322801662,1713331838311,-154.87609912,0.00021056,2]
[322801663,1713331838320,-154.87609912,0.00021056,2]
[322801664,1713331838329,-193.3820055,0.00021056,2]
[322801665,1713331838339,-1488.61335239,0.00021056,2]
[322801666,1713331838348,-471.02610279,0.00021056,2]
[322801667,1713331838357,-2008.53667804,0.00021057,2]
[322801668,1713331838366,-563.87316233,0.00021058,2]
[322801669,1713331838375,-154.87609912,0.00021058,2]
[322801670,1713331838384,-300.0,0.00021058,2]
[322801671,1713331838393,-300.0,0.00021058,2]
[322801672,1713331838402,-406.49971412,0.00021059,2]
[322801673,1713331838411,-205.83283873,0.00021059,2]
[322801674,1713331838421,-157.5764134,0.00021059,2]
[322801675,1713331838430,-154.87609912,0.00021059,2]
[322801676,1713331838441,-400.0,0.00021059,2]
[322801677,1713331838453,-1000.0,0.00021059,2]
[322801678,1713331838462,-154.87609912,0.0002106,2]
[322801679,1713331838473,-2096.98803724,0.0002106,2]
[322801680,1713331838484,-154.87609912,0.00021061,2]
[322801681,1713331838493,-31262.99119214,0.00021061,2]
[322801682,1713331838502,-264.12731696,0.00021064,2]
[322801683,1713331838511,-249.5636887,0.00021064,2]
[322801684,1713331838520,-72389.02048931,0.00021065,2]
[322801685,1713331838529,-59089.3083695,0.00021066,2]
[322801686,1713331838538,-622.96914813,0.00021086,2]
[322801687,1713331838547,-1672.33476714,0.00021209,2]
[322801688,1713331838556,-250.0,0.00021216,2]
[322801689,1713331838565,-611.8741466,0.00021918,2]
[322801690,1713331838575,-273.10586373,0.00022213,2]
[322801691,1713331838584,-548.43816881,0.00022213,2]
[322801692,1713331838594,-500.0,0.00022213,2]
[322801693,1713331838604,-217.06623492,0.00022213,2]
[322801694,1713331838615,-285.45604338,0.00022214,2]
[322801695,1713331838624,-475.41037518,0.00022214,2]
[322801696,1713331838633,-5169.17486398,0.00022214,2]
[322801697,1713331838642,-156.60093833,0.00022214,2]
[322801698,1713331838651,-488.20854963,0.00022214,2]
[322801699,1713331838660,-891.24104907,0.00022214,2]
[322801700,1713331838669,-5575.62419768,0.00022214,2]
[322801701,1713331838678,-420.0,0.00022905,2]
[322801702,1713331838687,-420.0,0.00023164,2]
[322801703,1713331838696,-587.0,0.00024914,2]
[322801704,1713331838705,-587.34915995,0.00025112,2]
[322801705,1713331838715,-587.0,0.0002548,2]
[322801706,1713331838725,-184.79468596,0.000255,4]
[322801707,1713331838734,-8507.18295185,0.00027,2]
[322801708,1713331838743,-823.0,0.00027099,2]
[322801709,1713331838752,-500.0,0.00027397,2]
[322801710,1713331838761,-628.39995503,0.00027397,2]
[322801711,1713331838770,-500.0,0.00027397,2]
[322801712,1713331838780,-500.0,0.00027397,2]
[322801713,1713331838789,-500.0,0.00027397,2]
[322801714,1713331838798,-500.0,0.00027397,2]
[322801715,1713331838808,-182.666084,0.00027397,2]
[322801716,1713331838818,-166.666666,0.00027397,2]
[322801717,1713331838827,-1000.0,0.00027397,2]
[322801718,1713331838837,-332.01154009,0.00027998,2]
[322801719,1713331838968,-244.20624846,0.00027998,2]
[322801720,1713331838978,-513.79483252,0.00027998,17]
[322801721,1713331838988,-154.86062544,0.00027998,2]
[322801722,1713331838998,-823.0,0.00028028,2]
[322801723,1713331839009,-166.666666,0.00028038,2]
[322801724,1713331839018,-166.666666,0.00028679,2]
[322801725,1713331839027,-5000.0,0.00029,2]
[322801726,1713331839036,-166.666666,0.00029321,2]
[322801727,1713331839045,-1152.0,0.00029476,2]
[322801728,1713331839054,-166.666666,0.00029962,2]
[322801729,1713331839063,-3000.0,0.0003,4]
[322801730,1713331839072,-285.45266682,0.0003,4]
[322801731,1713331839081,-154.86062544,0.0003,4]
[322801732,1713331839090,-154.86062544,0.0003,2]
[322801733,1713331839099,-162.621811,0.00030106,2]
[322801734,1713331839109,-587.34915995,0.00030112,2]
[322801735,1713331839118,-500.0,0.00030136,2]
[322801736,1713331839128,-500.0,0.00030191,2]
[322801737,1713331839137,-500.0,0.00030246,2]
[322801738,1713331839147,-184.5552508,0.00030301,2]
[322801739,1713331839156,-166.666666,0.00030603,2]
[322801740,1713331839166,-320.4553623,0.000308,10]
[322801741,1713331839175,-1152.0,0.00030831,2]
[322801742,1713331839184,-309.59752631,0.00031625,4]
[322801743,1713331839194,-154.86062544,0.0003189,10]
[322801744,1713331839205,-1259.5179488,0.00032,3]
[322801745,1713331839216,-1613.0,0.00032062,2]
[322801746,1713331839226,-586.0,0.000322,2]
[322801747,1713331839235,-500.0,0.00032446,2]
[322801748,1713331839245,-500.0,0.00032877,2]
[322801749,1713331839254,-500.0,0.00032877,2]
[322801750,1713331839263,-500.0,0.00032877,2]
[322801751,1713331839273,-500.0,0.00032877,2]
[322801752,1713331839282,-500.0,0.00032877,2]
[322801753,1713331839292,-587.73116803,0.00032877,2]
[322801754,1713331839302,-500.0,0.00032877,2]
[322801755,1713331839311,-500.0,0.00032877,2]
[322801756,1713331839320,-500.0,0.00032877,2]
[322801757,1713331839329,-500.0,0.00032877,2]
[322801758,1713331839338,-5200.0,0.000329,9]
[322801759,1713331839347,-161.0,0.00033,2]
[322801760,1713331839356,-2279.38756356,0.000332,2]
[322801761,1713331839365,-952.3391811,0.00033287,4]
[322801762,1713331839374,-410.43168604,0.00033287,4]
[322801763,1713331839383,-255.03733938,0.00033288,4]
[322801764,1713331839392,-155.07041477,0.00033288,4]
[322801765,1713331839402,-155.04741474,0.00033288,4]
[322801766,1713331839411,-4456.26,0.00033288,2]
[322801767,1713331839420,-4456.26,0.00033288,2]
[322801768,1713331839430,-4456.22,0.00033288,2]
[322801769,1713331839439,-160.55430088,0.00033289,4]
[322801770,1713331839448,-7044.397044,0.00033289,4]
[322801771,1713331839457,-1343.55075826,0.00033289,4]
[322801772,1713331839466,-10840.96673065,0.00033289,7]
[322801773,1713331839476,-2133.05871521,0.00033289,4]
[322801774,1713331839485,-537.55003278,0.00033289,4]
[322801775,1713331839494,-155.81741288,0.00033289,2]
[322801776,1713331839502,-167.32835926,0.00033289,4]
[322801777,1713331839510,-812.69044109,0.00033289,4]
[322801778,1713331839520,-154.94105672,0.00033289,4]
[322801779,1713331839528,-527.63615402,0.00033289,4]
[322801780,1713331839537,-157.21393234,0.00033289,4]
[322801781,1713331839545,-635.43673659,0.00033289,4]
[322801782,1713331839554,-270.62839001,0.00033289,4]
[322801784,1713331839563,-1407.75387588,0.00033289,4]
[322801785,1713331839571,-154.95624087,0.00033289,4]
[322801786,1713331839579,-4376.56573327,0.00033289,4]
[322801787,1713331839587,-354.24373475,0.00033289,4]
[322801788,1713331839596,-79267.48242337,0.00033289,4]
[322801789,1713331839604,-2459.88488251,0.00033289,4]
[322801790,1713331839612,-44288.30177831,0.0003329,5]
[322801791,1713331839620,-4848.21770199,0.0003329,5]
[322801792,1713331839629,-1014.98909932,0.0003329,4]
[322801793,1713331839637,-161998.4623011,0.0003329,30]
[322801794,1713331839645,-177.0,0.000333,7]
[322801795,1713331839653,-492.0,0.000333,2]
[322801796,1713331839662,-501.7492,0.000333,2]
[322801797,1713331839669,-299.0,0.0003333,6]
[322801798,1713331839678,-3147.10945943,0.00033332,4]
[322801799,1713331839686,-155.10172454,0.00033332,4]
[322801800,1713331839695,-217.66882425,0.00033332,4]
[322801801,1713331839702,-193.34893369,0.00033332,4]
[322801802,1713331839708,-159.82080584,0.00033332,4]
[322801803,1713331839714,-244.58345791,0.00033332,4]
[322801804,1713331839722,-528.5136069,0.00033332,4]
[322801805,1713331839728,-199.78086094,0.00033332,4]
[322801806,1713331839734,-186.93924961,0.00033332,10]
[322801807,1713331839740,-127595.2438972,0.00033333,7]
[322801808,1713331839747,-150.95011599,0.00033788,2]
[322801809,1713331839753,-150.108,0.00033789,2]
[322801810,1713331839759,-1613.0,0.00033914,2]
[322801811,1713331839766,-465.51859638,0.00034,4]
[322801812,1713331839772,-42423.4703018,0.00034,60]
[322801813,1713331839779,-161.0,0.00034521,2]
[322801814,1713331839785,-150.0,0.00034788,2]
[322801815,1713331839791,-1475.0,0.00034874,2]
[322801816,1713331839798,-10629.16568609,0.00034961,5]
[322801817,1713331839804,-153.7405502,0.0003498,2]
[322801818,1713331839811,-191.14907978,0.00034996,4]
[322801819,1713331839818,-4653.07827186,0.00035,4]
[322801820,1713331839825,-597.14612396,0.00035,2]
[322801821,1713331839834,-154.86062544,0.00035,4]
[322801822,1713331839843,-1002.48113601,0.00035,30]
[322801823,1713331839852,-413.25649335,0.00035,2]
[322801824,1713331839861,-2019.72993142,0.00035,120]
[322801825,1713331839870,-417.314,0.00035253,2]
[322801826,1713331839879,-154.86062544,0.0003589,2]
[322801827,1713331839889,-28946.91827381,0.00036,30]
[322801828,1713331839897,-10023.0,0.00036,30]
[322801829,1713331839906,-164.0,0.00036247,2]
[322801830,1713331839915,-3508.80969002,0.00037,2]
[322801831,1713331839924,-2258.0,0.00037306,2]
[322801832,1713331839933,-417.0,0.00038253,2]
[322801833,1713331839942,-170.47025553,0.00038353,7]
[322801834,1713331839951,-501.16,0.00038547,2]
[322801835,1713331839960,-365.332159,0.00038933,2]
[322801836,1713331839971,-155.14795104,0.0004,2]
[322801837,1713331839980,-602.09847809,0.0004,4]
[322801838,1713331839989,-170.47025553,0.00040018,30]
[322801839,1713331839998,-1062.34501935,0.00041,4]
[322801840,1713331840007,-3162.0,0.00041036,3]
[322801841,1713331840016,-170.47025554,0.00041916,30]
[322801842,1713331840025,-150.8642222,0.00042449,2]
[322801843,1713331840034,-301.7284444,0.00043162,4]
[322801844,1713331840043,-1000.0,0.00043227,5]
[322801845,1713331840052,-161.0,0.00043496,90]
[322801846,1713331840061,-603.4568888,0.00043887,7]
[322801847,1713331840070,-4740.85037177,0.00044187,2]
[322801848,1713331840079,-1378.01233362,0.00044187,30]
[322801849,1713331840088,-2728.65239884,0.00044187,5]
[322801850,1713331840097,-166.84376062,0.00044625,4]
[322801851,1713331840106,-365.332159,0.00044701,2]
[322801852,1713331840116,-8530.04668008,0.00045,120]
[322801853,1713331840125,-39573.33673196,0.00045,2]
[322801854,1713331840135,-4427.0,0.0004514,3]
[322801855,1713331840144,-154.86062544,0.000459,4]
[322801856,1713331840153,-3377.85956264,0.00049,120]
[322801857,1713331840162,-3398.0,0.00049654,3]
[322801858,1713331840171,-154.84515485,0.0005,30]
[322801859,1713331840181,-365.332159,0.00050469,2]
[322801860,1713331840190,-153.0,0.00051191,2]
[322801861,1713331840199,-238.7010642,0.00051387,2]
[322801862,1713331840209,-252.6131771,0.00051387,2]
[322801863,1713331840221,-153.0,0.00051387,2]
[322801865,1713331840231,-365.332159,0.00056236,2]
[322801867,1713331840240,-500.0,0.0006,120]
[322801868,1713331840250,-365.332159,0.00062004,2]
[322801869,1713331840259,-304.9,0.000633,120]
[322801870,1713331840268,-150.8642222,0.00063673,2]
[322801871,1713331840277,-1000.0,0.00064203,120]
[322801872,1713331840288,-365.332159,0.00067772,2]
[322801873,1713331840297,-4456.22,0.00069999,30]
[322801874,1713331840306,-4456.22,0.00069999,30]
[322801875,1713331840315,-4456.22,0.00069999,30]
[322801876,1713331840324,-4456.22,0.00069999,30]
[322801877,1713331840333,-4456.22,0.00069999,30]
[322801878,1713331840342,-4456.22,0.00069999,30]
[322801879,1713331840351,-4456.22,0.00069999,30]
[322801880,1713331840360,-47983.0488335,0.0007,120]
[322801965,1713332126276,359.26,0.000252,30]
[322801968,1713332186997,268.68794654,0.00020949,2]
[322801976,1713332374994,24900.0,0.0002003,2]
[322801977,1713332375890,981.82112602,0.00020929,2]
[322801981,1713332428922,200.0,0.00020929,2]
[322801982,1713332430194,969.53267277,0.00019969,2]
[322801983,1713332430887,155.49050138,0.00020929,2]
[322801984,1713332434021,11613.85914445,0.00020929,2]
[322801985,1713332434804,155.38219365,0.00020929,2]
[322801987,1713332436869,534.45033612,0.00020929,2]
[322801988,1713332437943,253.10281511,0.0002102,60]
[322801989,1713332443025,1612.84975599,0.00020929,2]
[322801990,1713332443504,155.55330623,0.0002081,2]
[322801991,1713332444004,155.33451808,0.00020929,2]
[322801992,1713332451672,1122.00521434,0.00020923,2]
[322801993,1713332459221,185.801869,0.00020017,2]
[322801995,1713332475521,6561.99420867,0.0002,5]
[322802003,1713332503746,168.954828,0.00019736,2]
[322802011,1713332526923,592.85123338,0.00020907,2]
[322802012,1713332530846,154.87609912,0.00021,2]
[322802013,1713332531368,1000.0,0.00021,2]
[322802014,1713332531761,937.89373734,0.00021,2]
[322802016,1713332535692,2008.53667804,0.00021,2]
[322802019,1713332538186,539.22318272,0.00021,2]
[322802021,1713332540122,5794.22884136,0.00021,2]
[322802022,1713332541090,3742.37168361,0.00021,2]
[322802023,1713332541165,207.65285215,0.00021,2]
[322802024,1713332543574,1575.3401522,0.00021,2]
[322802025,1713332544051,241.20667916,0.00021,2]
[322802026,1713332545052,216.18479097,0.00021,2]
[322802027,1713332545782,406.49971412,0.00021,2]
[322802028,1713332546158,563.87316233,0.00021,2]
[322802029,1713332546186,622.96914813,0.00021,2]
[322802030,1713332546388,154.87609912,0.00021,2]
[322802031,1713332547381,1000.0,0.00021,2]
[322802032,1713332547993,246.93293796,0.00021,2]
[322802033,1713332549290,6065.12028442,0.00021,2]
[322802034,1713332550852,195.49338163,0.00021,2]
[322802035,1713332550883,408.43488901,0.00021,2]
[322802036,1713332551703,2008.53667804,0.00021,2]
[322802037,1713332551770,604.45595228,0.00021,2]
[322802039,1713332554073,602.61216035,0.00021,2]
[322802040,1713332554188,539.22318272,0.00021,2]
[322802041,1713332554514,2125.76560283,0.00021,2]
[322802042,1713332554561,1310.15475715,0.00021,2]
[322802043,1713332555086,3742.37168361,0.00021,2]
[322802044,1713332555299,5578.49773304,0.00021,2]
[322802045,1713332556120,5794.22884136,0.00021,2]
[322802046,1713332557503,185.98553513,0.00021,2]
[322802047,1713332557792,241.20667916,0.00021,2]
[322802048,1713332558391,154.87609912,0.00021,2]
[322802049,1713332559008,467.87279548,0.00021,2]
[322802050,1713332559173,306.52991267,0.00021,2]
[322802051,1713332560288,525.74547902,0.00021,2]
[322802052,1713332560806,1089.26071762,0.00021,2]
[322802053,1713332560843,1159.91624131,0.00021,2]
[322802054,1713332560877,154.87609912,0.00021,2]
[322802055,1713332560911,361.60536711,0.00021,2]
[322802056,1713332561052,216.18479097,0.00021,2]
[322802057,1713332562156,307.80255635,0.00021,2]
[322802058,1713332562185,310.66653905,0.00021,2]
[322802059,1713332562355,308.13476314,0.00021,2]
[322802060,1713332563073,173.55649324,0.00021,2]
[322802061,1713332563104,474.19997224,0.00021,2]
[322802062,1713332563726,193.3820055,0.00021,2]
[322802063,1713332563775,406.49971412,0.00021,2]
[322802064,1713332565693,2008.53667804,0.00021,2]
[322802065,1713332565993,246.93293796,0.00021,2]
[322802066,1713332566500,154.87609912,0.00020999,2]
[322802067,1713332566585,154.87609912,0.00021,2]
[322802068,1713332566881,548.33838364,0.00021,2]
[322802069,1713332567381,1000.0,0.00021,2]
[322802070,1713332569295,2380.77640423,0.00021,2]
[322802071,1713332569389,154.87609912,0.00021,2]
[322802072,1713332571784,188.96976676,0.00020999,2]
[322802073,1713332572183,341.75156124,0.00021,2]
[322802074,1713332572494,1395.60160069,0.00021,2]
[322802075,1713332572638,1070.09010636,0.00021,2]
[322802076,1713332573026,537.25429814,0.00021,2]
[322802077,1713332573362,965.39339888,0.00020999,2]
[322802078,1713332574033,527.38134781,0.00021,2]
[322802079,1713332574197,2583.09136382,0.00021,2]
[322802080,1713332574226,1089.26071762,0.00021,2]
[322802081,1713332574633,239.16978105,0.00021,2]
[322802082,1713332575507,185.98553513,0.00021,2]
[322802083,1713332575543,2584.94589356,0.00021,2]
[322802084,1713332576393,157.40041568,0.00021,2]
[322802087,1713332578369,308.13476314,0.00021,2]
[322802088,1713332578561,9563.28200328,0.00021,2]
[322802089,1713332578978,624.69362663,0.00021,2]
[322802090,1713332579059,216.18479097,0.00021,2]
[322802091,1713332579091,3742.37168361,0.00021,2]
[322802092,1713332579255,602.61216035,0.00021,2]
[322802093,1713332579624,154.87609912,0.00021,2]
[322802094,1713332579721,193.3820055,0.00021,2]
[322802095,1713332579800,169.09743077,0.00021,2]
[322802097,1713332580494,154.87609912,0.00021,2]
[322802098,1713332580608,300.0,0.00021,2]
[322802099,1713332580714,166.90823979,0.00021,2]
[322802100,1713332581335,1488.61335239,0.00021,2]
[322802101,1713332582934,154.87609912,0.00020999,2]
[322802102,1713332583081,881.0914059,0.00020999,2]
[322802103,1713332583200,300.0,0.00021,2]
[322802104,1713332583794,154.87609912,0.00021,2]
[322802105,1713332583866,555.99700222,0.00021,2]
[322802106,1713332584602,192.51559344,0.00021,2]
[322802107,1713332584658,2942.63433838,0.00021,2]
[322802108,1713332585129,157.04962732,0.00021,2]
[322802109,1713332585395,158.106923,0.00021,2]
[322802110,1713332585423,504.15935655,0.00021,2]
[322802111,1713332585702,692.23677229,0.00021,2]
[322802112,1713332585981,373.34591368,0.00021,2]
[322802113,1713332586834,154.87609912,0.00021,2]
[322802114,1713332587783,188.96976676,0.00021,2]
[322802115,1713332588567,154.87609912,0.00021,2]
[322802116,1713332589530,2584.94589356,0.00021,2]
[322802117,1713332591366,965.39339888,0.00021,2]
[322802118,1713332592567,1277.68472737,0.00021,2]
[322802119,1713332594076,209.77633082,0.00021,2]
[322802120,1713332594166,253.78950535,0.00021,2]
[322802121,1713332594438,308.13476314,0.00021,2]
[322802122,1713332595737,165.04176068,0.00021,2]
[322802124,1713332596411,72389.02048931,0.00021,2]
[322802125,1713332596809,469.12528489,0.00021,2]
[322802126,1713332597070,217.39389903,0.00021,2]
[322802127,1713332597102,686.83045583,0.00021,2]
[322802128,1713332597140,662.85763238,0.00021,2]
[322802129,1713332597179,187.774849,0.00021,2]
[322802130,1713332597570,154.86062544,0.00021,2]
[322802131,1713332598949,154.86062544,0.00021,2]